[Event "13th Palmanova Festival A 2024"]
[Site "Palmanova"]
[Date "2025.01.01"]
[Round "7.13"]
[White "Javornik, Nik"]
[Black "Reza, Wojciech"]
[Result "0-1"]
[ECO "B30"]
[WhiteElo "2300"]
[BlackElo "2227"]
[Annotator "TA"]
[PlyCount "78"]
[EventDate "2024.12.27"]
[EventCountry "ITA"]
[SourceTitle "playchess.com"]
[Source "ChessBase"]
[SourceQuality "1"]
[TimeControl "6000+30"]

{[%evp 10,78,16,12,42,-14,20,1,0,0,-6,-7,0,0,20,9,8,0,5,7,31,17,31,-16,0,-31,-20,-30,-29,-24,-25,-30,0,-15,-9,-17,-13,-22,-17,-18,-21,-25,-29,-23,-21,-84,-79,-103,-103,-150,-126,-244,-221,-797,-754,-1255,-1226,-1061,-1014,-999,-998,-875,-979,-1354,-1326,-2316,-2033,-2854,-2794,-29994,-29995]} 1. e4 {[%emt 1:41:00]} c5 {[%emt 0:01:53]} 2. Nc3 {[%emt 0:00:00]} Nc6 {[%emt 0:01:27]} 3. Bb5 {[%emt 0:00:00]} Nd4 {[%emt 0:00:58]} 4. Nf3 {[%emt 0:00:00]} e6 {[%emt 0:03:11]} 5. O-O {[%emt 0:00:00]} a6 {[%emt 0:00:24]} 6. Bd3 {[%emt 0:00:00]} Nc6 {[%emt 0:00:11] [#]} 7. Nd5 {[%emt 0:00:00]} Nf6 {[%emt 0:01:31]} (7... g5 $5) 8. Ne3 {[%emt 0:00:00]} (8. Re1 $5) 8... d5 {[%emt 0:34:57] The position is equal.} 9. exd5 {[%emt 0:00:00]} exd5 {[%emt 0:00:12]} 10. Re1 {[%emt 0:00:00]} Be7 {[%emt 0:00:08]} 11. Nf5 {[%emt 0:00:00]} O-O {[%emt 0:00:44]} 12. Nxe7+ {[%emt 0:00:00]} Nxe7 {[%emt 0:00:08]} 13. Bf1 {[%emt 0:00:00]} d4 {[%emt 0:01:58]} 14. d3 {[%emt 0:00:00]} Nc6 {[%emt 0:22:05]} 15. h3 {[%emt 0:00:00]} Qd6 {[%emt 0:02:07]} 16. g3 {[%emt 0:00:00]} (16. Qd2 $14 {feels stronger.}) 16... Be6 $11 {[%emt 0:04:35]} 17. Bg2 {[%emt 0:00:00]} Rfe8 {[%emt 0:01:07]} 18. Kh2 {[%emt 0:00:00]} Qd7 {[%emt 0:05:37]} 19. Bg5 {[%emt 0:00:00]} Nd5 {[%emt 0:00:20]} 20. a3 {[%emt 0:00:00]} Rac8 {[%emt 0:00:59]} 21. Bd2 {[%emt 0:00:00]} f6 {[%emt 0:00:41]} 22. Re2 {[%emt 0:00:00]} b5 {[%emt 0:06:10]} 23. Qh1 {[%emt 0:00:00][%cal Of3g5]} Bf7 {[%emt 0:06:53]} 24. Rxe8+ {[%emt 0:00:00]} Rxe8 {[%emt 0:00:05]} 25. Re1 {[%emt 0:00:00]} Rd8 {[%emt 0:00:12]} 26. Rd1 {[%emt 0:00:00]} a5 {[%emt 0:02:37]} 27. c4 {[%emt 0:00:00]} (27. Bc1 $1 $11) 27... dxc3 $17 {[%emt 0:04:03]} 28. bxc3 {[%emt 0:00:00]} b4 $36 {[%emt 0:01:20][%mdl 2048] Black is in control. Black is more active.} 29. c4 {[%emt 0:00:00] [#]} (29. axb4 $142 cxb4 (29... axb4 30. cxb4 cxb4 31. Rb1 $17) 30. cxb4 axb4 (30... Ndxb4 $2 31. Ne1 $17) 31. Rb1) 29... Nb6 $1 {[%emt 0:01:00]} 30. Be3 {[%emt 0:00:00]} (30. Ng5 $17 fxg5 31. Bxc6 Qxd3 32. Bf3) 30... Nxc4 $1 $19 {[%emt 0:00:19]} (30... bxa3 31. Bxc5 Na4 (31... Nxc4 32. Nd4 $16) 32. Bxa3 Bxc4 33. Rc1 $14) 31. Nd2 $2 {[%emt 0:00:00]} (31. Bxc5 Nxa3 (31... bxa3 32. Nd4 $16) 32. Rc1) 31... Nxe3 {[%emt 0:01:42]} (31... Nxa3 32. Bxc6 Qxd3 33. Bf3 $18) 32. Bxc6 {[%emt 0:00:02]} Qxd3 {[%emt 0:00:23]} 33. fxe3 {[%emt 0:00:08]} Qe2+ {[%emt 0:00:07]} ({Weaker is} 33... Qxe3 34. Qg2 $17) ({Less strong is} 33... Qxa3 34. Nc4 Qa2+ (34... Bxc4 35. Rxd8+ Kf7 36. Be8+ Kf8 37. Bb5+ Kf7 38. Bxc4+ Kg6 39. Qe4+ Kh6 40. Be2 g5 41. Rd7 g4 42. Rxh7+ Kg5 43. Qxg4#) 35. Bg2 $17) 34. Bg2 {[%emt 0:02:09]} Rxd2 {[%emt 0:00:25]} 35. Rxd2 {[%emt 0:00:05]} Qxd2 {[%emt 0:00:03]} 36. axb4 {[%emt 0:00:03]} cxb4 {[%emt 0:00:26]} 37. e4 {[%emt 0:00:06] Against Bd5} b3 {[%emt 0:00:46] White must now prevent ...b2.} 38. Qa1 {[%emt 0:00:03]} b2 {[%emt 0:00:29]} 39. Qxa5 {[%emt 0:00:08]} Qxa5 {[%emt 0:00:06] Weighted Error Value: White=1.02/Black=0.09 (flawless) .  Mistake:       	White=6     	---        Inaccurate:     	White=2     	Black=1      OK:         	White=9     	Black=8      Best:        	White=1     	Black=1      Strong:       	---       	Black=2} 0-1

[Event "13th Palmanova Festival A 2024"]
[Site "Palmanova"]
[Date "2025.01.01"]
[Round "7.14"]
[White "Hercegovac, Neven"]
[Black "Maglioni, Leonardo"]
[Result "0-1"]
[ECO "C02"]
[WhiteElo "2287"]
[BlackElo "1971"]
[Annotator "TA"]
[PlyCount "68"]
[EventDate "2024.12.27"]
[EventCountry "ITA"]
[SourceTitle "playchess.com"]
[Source "ChessBase"]
[SourceQuality "1"]
[TimeControl "6000+30"]

{[%evp 16,68,27,28,27,40,51,48,112,133,139,0,0,5,17,-116,-130,-128,-128,-115,-143,-116,-133,-168,-58,-245,-244,-243,-226,-426,-403,-552,-517,-543,-546,-544,-517,-505,-468,-473,-462,-731,-720,-776,-768,-748,-282,-282,-282,-523,-525,-523,-509,-481,-460]} 1. e4 {[%emt 0:09:06]} e6 {[%emt 0:00:07]} 2. d4 {[%emt 0:00:14]} d5 {[%emt 0:00:04]} 3. e5 {[%emt 0:00:30]} c5 {[%emt 0:00:05]} 4. c3 {[%emt 0:00:04]} Nc6 {[%emt 0:00:05]} 5. Nf3 {[%emt 0:00:05]} Qb6 {[%emt 0:00:20]} 6. Be2 {[%emt 0:00:08]} Bd7 {[%emt 0:00:11]} 7. O-O {[%emt 0:00:11]} cxd4 {[%emt 0:01:23]} 8. cxd4 {[%emt 0:01:14]} Nge7 {[%emt 0:06:23]} 9. Nc3 {[%emt 0:00:16]} Rc8 {[%emt 0:00:57]} 10. Na4 {[%emt 0:18:14]} Qc7 {[%emt 0:08:28]} 11. a3 {[%emt 0:03:51]} f6 {[%emt 0:13:46]} (11... Nf5 $14) 12. exf6 $16 {[%emt 0:23:01]} gxf6 {[%emt 0:00:19]} 13. Nh4 {[%emt 0:00:24]} (13. Re1 $16) 13... Ng6 $11 {[%emt 0:04:27]} 14. Bh5 {[%emt 0:00:14][%cal Og2g3]} Kd8 {[%emt 0:09:29] [#]} 15. Qf3 {[%emt 0:15:00]} Be7 $17 {[%emt 0:25:28]} 16. Bxg6 {[%emt 0:00:55]} hxg6 {[%emt 0:07:47]} 17. Bf4 {[%emt 0:00:51]} e5 $1 {[%emt 0:03:03]} 18. Nxg6 {[%emt 0:00:34]} Nxd4 {[%emt 0:03:48]} 19. Qd3 {[%emt 0:00:37] Threatens to win with Rfc1.} Bxa4 {[%emt 0:10:07]} (19... exf4 $2 20. Qxd4 (20. Nxh8 Qc4 $16) 20... Rh7 21. Nc3 $18 (21. Qxa7 Bd6 $11) (21. Nxf4 $2 Qc4 $19) (21. Qxd5 Qc4 $18)) (19... Bf5 20. Qxd4 Bxg6 21. Qxd5+ Qd7 22. Qxd7+ Kxd7 23. Be3 $11) ({Black should try} 19... Qc2 $1 $19 {[%cal Rc2d3]} 20. Qxc2 Nxc2 21. Nxh8 Nxa1 (21... exf4 $2 22. Rac1 $19) (21... Bxa4 22. Rad1 $17)) 20. Nxh8 $2 {[%emt 0:02:00] [#]} (20. Qxd4 $1 $15 Qd7 (20... exd4 21. Bxc7+ Rxc7 22. Nxh8 $15) 21. Qd2 (21. Qxa7 Bc5 $17)) 20... Qc2 $1 $19 {[%emt 0:01:46]} 21. Qxc2 {[%emt 0:09:15]} (21. Nf7+ $2 Ke8 22. Qxc2 Nxc2 (22... Rxc2 $2 23. Bxe5 Ne2+ 24. Kh1 $19) 23. Nxe5 fxe5 24. Bxe5 Nxa1 25. Rxa1 Rc4 $19) 21... Bxc2 {[%emt 0:04:34]} ({Don't do} 21... Rxc2 22. Be3 $17) 22. Bd2 $2 {[%emt 0:02:48]} (22. Bxe5 fxe5 (22... Ne2+ $2 23. Kh1 $19) 23. Nf7+ Ke8 24. Nxe5) 22... Nb3 {[%emt 0:00:53][%csl LRa1,LRd2]} 23. Bb4 {[%emt 0:02:00]} Nxa1 {[%emt 0:00:48]} 24. Rxa1 {[%emt 0:00:07]} Bxb4 {[%emt 0:01:09]} 25. axb4 {[%emt 0:00:01][%mdl 4096] Endgame KRB-KRN} d4 {[%emt 0:00:40]} 26. Nf7+ {[%emt 0:01:56]} Ke7 {[%emt 0:00:33]} 27. Nh6 {[%emt 0:00:15]} Ke6 {[%emt 0:01:30]} 28. f3 {[%emt 0:01:43]} (28. f4 $142 d3 (28... exf4 29. Re1+ Kd5 30. Ng4 $19) 29. f5+ Kd7 30. Kf2) 28... d3 {[%emt 0:01:05]} 29. Ng4 {[%emt 0:00:03]} d2 {[%emt 0:00:08]} 30. Ne3 {[%emt 0:01:34]} a6 $2 {[%emt 0:01:45]} (30... Bb3 {Threatens to win with ...Rc1+.} 31. Kf2 Rc1 32. Rxa7 Re1 (32... d1=R $2 33. Nxd1 Rxd1 34. Rxb7 $19) (32... d1=B 33. Rxb7 Ba2 34. g4 $15) (32... d1=N+ $2 33. Nxd1 Rxd1 34. Rxb7 $19)) 31. Kf2 {[%emt 0:00:37] [#]} Bb3 $1 {[%emt 0:00:22]} 32. Rd1 $2 {[%emt 0:02:35]} (32. b5 axb5 (32... Rc1 $2 33. bxa6 bxa6 34. Rxa6+ Kf7 35. h4 $19) 33. Ke2) 32... Bxd1 {[%emt 0:00:15]} 33. Nxd1 {[%emt 0:00:02]} Rd8 {[%emt 0:00:56]} 34. Ke2 {[%emt 0:00:06]} f5 {[%emt 0:00:10]} 0-1